bitfinex/quotes_BTCUSD_20251012
["timestamp","ask_amount","ask_price","bid_price","bid_amount"]
[1760253815141,0.00069081,112110.0,112100.0,2.13158477]
[1760253817018,0.0002,112130.0,112110.0,0.2335481]
[1760253817191,0.0002,112130.0,112120.0,1.73565055]
[1760253817392,0.0002,112130.0,112120.0,1.76540252]
[1760253817773,1e-08,112130.0,112120.0,1.68523485]
[1760253818033,1e-08,112140.0,112130.0,0.23351628]
[1760253818236,1e-08,112140.0,112130.0,2.92820161]
[1760253818433,1e-08,112140.0,112130.0,0.52650202]
[1760253818978,1e-08,112140.0,112130.0,0.44649012]
[1760253819174,0.0002,112170.0,112160.0,0.17831669]
[1760253819383,0.00069889,112170.0,112160.0,0.21685668]
[1760253819579,0.00069889,112170.0,112160.0,1.52624935]
[1760253819760,0.00069889,112170.0,112160.0,1.62148851]
[1760253819969,0.00069889,112170.0,112160.0,0.33091584]
[1760253820771,0.00069889,112170.0,112160.0,0.38585946]
[1760253820982,0.00069889,112170.0,112160.0,0.41601136]
[1760253821179,0.00069889,112170.0,112160.0,0.33606775]
[1760253821387,0.0002,112190.0,112180.0,0.20328488]
[1760253821588,0.0002,112210.0,112200.0,0.20840501]
[1760253821796,0.0002,112230.0,112220.0,0.17822135]
[1760253821999,0.00034969,112230.0,112220.0,0.21162135]
[1760253822263,0.02716711,112230.0,112220.0,0.23928135]
[1760253822466,2.60831245,112230.0,112220.0,0.06106]
[1760253822638,1.31773978,112230.0,112220.0,0.06106]
[1760253822837,1.31773978,112230.0,112220.0,0.23928135]
[1760253823022,1.65773978,112230.0,112220.0,0.23928135]
[1760253823431,1.66605346,112230.0,112220.0,0.23928135]
[1760253823682,1.66605346,112230.0,112220.0,0.28247917]
[1760253824125,2.98480613,112230.0,112220.0,0.21162135]
[1760253824920,2.96631613,112230.0,112220.0,0.23928135]
[1760253825647,0.38517079,112230.0,112220.0,0.26718135]
[1760253825858,2.96631613,112230.0,112220.0,0.26718135]
[1760253826675,1.67574346,112230.0,112220.0,0.26718135]
[1760253826857,1.67574346,112230.0,112220.0,0.31316917]
[1760253827949,1.68269584,112230.0,112220.0,0.31316917]
[1760253828346,1.68269584,112230.0,112220.0,0.26718135]
[1760253828552,3.16996398,112230.0,112220.0,0.0613]
[1760253828824,3.19803398,112230.0,112220.0,0.0279]
[1760253829448,3.28675332,112230.0,112220.0,0.0279]
[1760253829859,3.19803398,112230.0,112220.0,0.0279]
[1760253830885,0.58881864,112230.0,112220.0,0.0279]
[1760253831048,3.01636587,112230.0,112220.0,0.0279]
[1760253831253,3.04318768,112230.0,112220.0,0.0279]
[1760253833182,3.01636587,112230.0,112220.0,0.0279]
[1760253834150,3.03034302,112230.0,112220.0,0.0279]
[1760253838121,3.11906236,112230.0,112220.0,0.0279]
[1760253838500,8.36530174,112230.0,112220.0,0.0279]
[1760253838639,8.3652845,112230.0,112220.0,0.0279]
[1760253838841,4.4563574,112230.0,112220.0,1e-08]
[1760253839052,8.3954364,112230.0,112220.0,1e-08]
[1760253839251,0.518269,112190.0,112180.0,0.15723336]
[1760253839443,1.53338811,112190.0,112180.0,0.07162362]
[1760253839643,1.50531811,112190.0,112180.0,0.07162362]
[1760253839846,1.50531811,112190.0,112180.0,0.09056362]
[1760253840045,1.50531811,112190.0,112180.0,0.0334]
[1760253840478,1.50531811,112190.0,112180.0,0.03354969]
[1760253840716,1.50531811,112190.0,112180.0,0.05894663]
[1760253840916,1.47713811,112190.0,112180.0,0.08660663]
[1760253842347,1.47713811,112190.0,112180.0,0.06120969]
[1760253844795,1.48177468,112190.0,112180.0,0.06120969]
[1760253849589,3.15938735,112190.0,112180.0,0.00014969]
[1760253850486,3.17608539,112190.0,112180.0,0.00014969]
[1760253851292,3.15938735,112190.0,112180.0,0.00014969]
[1760253851999,3.15109091,112190.0,112180.0,0.00014969]
[1760253852204,3.15943868,112190.0,112180.0,0.00014969]
[1760253852936,3.24815802,112190.0,112180.0,0.00014969]
[1760253853261,3.15943868,112190.0,112180.0,0.00014969]
[1760253853589,3.15943868,112190.0,112150.0,0.33201589]
[1760253853590,0.17831669,112160.0,112150.0,0.33201589]
[1760253853905,0.17831669,112160.0,112150.0,0.35303478]
[1760253853906,1.47701822,112160.0,112150.0,0.35303478]
[1760253854112,1.47701822,112160.0,112150.0,0.28141116]
[1760253854470,1.47701943,112160.0,112150.0,0.3297373]
[1760253854999,1.47701943,112160.0,112150.0,0.28141116]
[1760253855268,1.46867045,112160.0,112150.0,0.28141116]
[1760253856036,0.18866079,112170.0,112150.0,0.28141116]
[1760253856240,1.46867045,112160.0,112150.0,0.28141116]
[1760253858738,0.00891424,112180.0,112170.0,0.17830079]
[1760253858940,0.6535268,112180.0,112170.0,0.27919162]
[1760253859156,1.29870368,112180.0,112170.0,0.24353079]
[1760253859360,1.30276104,112180.0,112170.0,0.24353079]
[1760253859583,1.48104593,112180.0,112170.0,0.24353079]
[1760253860306,1.81269601,112180.0,112170.0,0.06523]
[1760253860630,1.82104659,112180.0,112170.0,0.24353079]
[1760253860823,1.82991356,112180.0,112170.0,0.06523]
[1760253861032,1.82104665,112180.0,112170.0,0.06523]
[1760253861217,1.81269601,112180.0,112170.0,0.06523]
[1760253861525,1.81269601,112180.0,112170.0,0.24353079]
[1760253862503,1.81231993,112180.0,112170.0,0.24353079]
[1760253863661,0.52234225,112180.0,112170.0,0.24353079]
[1760253863794,1.81231993,112180.0,112170.0,0.28806521]
[1760253864437,1.81231993,112180.0,112170.0,0.10976442]
[1760253864665,1.81231993,112180.0,112170.0,0.06523]
[1760253867725,0.52234225,112180.0,112170.0,0.06523]
[1760253867956,1.81231993,112180.0,112170.0,0.06523]
[1760253870087,1.81231993,112180.0,112170.0,0.24353079]
[1760253873590,1.81231993,112180.0,112170.0,0.06523]
[1760253873809,1.81231993,112180.0,112170.0,0.24353079]
[1760253874244,1.81231993,112180.0,112170.0,0.06523]
[1760253874638,1.81231993,112180.0,112170.0,0.24353079]
[1760253874881,1.81225695,112180.0,112170.0,0.24353079]
[1760253877324,1.81225695,112180.0,112170.0,0.06523]
[1760253877729,1.81225695,112180.0,112170.0,0.24353079]
[1760253877928,1.81225695,112180.0,112170.0,0.06523]
[1760253879793,1.81225695,112180.0,112170.0,0.24353079]
[1760253882586,1.81225695,112180.0,112170.0,0.06523]
[1760253882820,1.81225695,112180.0,112170.0,0.24353079]
[1760253883636,1.81198951,112180.0,112170.0,0.29605957]
[1760253884001,1.16703216,112180.0,112170.0,0.29605957]
[1760253884207,1.81198951,112180.0,112170.0,0.11775878]
[1760253885067,1.81198951,112180.0,112170.0,0.29605957]
[1760253885234,1.81198951,112180.0,112170.0,0.29601257]
[1760253885701,1.81198951,112180.0,112170.0,0.41376257]
[1760253887403,1.81198951,112180.0,112170.0,0.23546178]
[1760253887589,1.81198951,112180.0,112170.0,0.182933]
[1760253887807,1.81198951,112180.0,112170.0,0.36123379]
[1760253888511,1.81198951,112180.0,112170.0,0.4411774]
[1760253889980,1.81198951,112180.0,112170.0,0.5109774]
[1760253893383,1.8388177,112180.0,112170.0,0.5109774]
[1760253893577,1.8388177,112180.0,112170.0,0.58225648]
[1760253895527,1.8388177,112180.0,112170.0,0.59357648]
[1760253895861,1.8388177,112180.0,112170.0,0.51363287]
[1760253900199,2.53999505,112180.0,112170.0,0.19887]
[1760253900411,4.4748671,112180.0,112170.0,0.19887]
[1760253900622,4.49160969,112180.0,112170.0,0.19887]
[1760253901202,2.5565168,112180.0,112170.0,0.19887]
[1760253901415,4.49138885,112180.0,112170.0,0.19887]
[1760253901628,4.47464626,112180.0,112170.0,0.19887]
[1760253901828,2.53977421,112180.0,112170.0,0.19887]
[1760253902421,4.47464626,112180.0,112170.0,0.19887]
[1760253904622,4.5633656,112180.0,112170.0,0.19887]
[1760253905081,8.5024446,112180.0,112170.0,0.19887]
[1760253905748,8.41372526,112180.0,112170.0,0.19887]
[1760253908086,0.51831669,112160.0,112150.0,0.00049889]
[1760253908289,4.39652079,112160.0,112150.0,0.00049889]
[1760253908481,1.14402459,112150.0,112140.0,0.07162362]
[1760253908775,0.17836439,112130.0,112120.0,0.07162362]
[1760253909086,2.48125644,112130.0,112120.0,0.07177332]
[1760253909264,2.48125644,112130.0,112120.0,0.0001497]
[1760253909446,2.50920644,112130.0,112120.0,0.0001497]
[1760253909580,2.53605129,112130.0,112120.0,0.0001497]
[1760253910094,2.62477063,112130.0,112120.0,0.0001497]
[1760253910306,2.53605129,112130.0,112120.0,0.0001497]
[1760253912005,8.41000234,112130.0,112120.0,0.0001497]
[1760253912437,0.64495735,112080.0,112070.0,0.29378163]
[1760253912643,0.64500711,112080.0,112070.0,0.12521362]
[1760253912862,0.64500711,112080.0,112070.0,0.23204989]
[1760253913229,0.67185888,112080.0,112070.0,0.05359]
[1760253913630,1.49760673,112080.0,112070.0,0.05359]
[1760253913832,1.51588673,112080.0,112070.0,0.05581923]
[1760253914007,1.35109277,112080.0,112070.0,0.05581923]
[1760253914538,1.33281277,112080.0,112070.0,0.05581923]
[1760253914738,1.31916277,112080.0,112070.0,0.2583258]
[1760253915173,1.92292672,112080.0,112070.0,0.00840923]
[1760253915583,2.56905734,112080.0,112070.0,0.00840923]
[1760253916229,2.66905733,112080.0,112070.0,0.00222923]
[1760253916431,2.75777667,112080.0,112070.0,0.00222923]
[1760253917906,2.66905733,112080.0,112070.0,0.00222923]
[1760253920154,2.67011288,112080.0,112070.0,0.00222923]
[1760253922810,6.60919188,112080.0,112070.0,0.00222923]
[1760253923014,6.60879188,112080.0,112070.0,0.00222923]
[1760253923492,2.66971288,112080.0,112070.0,0.00222923]
[1760253923617,2.68370904,112080.0,112070.0,0.00222923]
[1760253925699,0.2034758,112060.0,112050.0,0.03752]
[1760253925904,2.2565732,112060.0,112050.0,0.03752]
[1760253926116,2.3032432,112060.0,112050.0,0.03752]
[1760253926489,2.33010529,112060.0,112050.0,0.03752]
[1760253926887,1.68362282,112060.0,112050.0,0.03752]
[1760253927273,0.17852911,112030.0,112020.0,0.00618]
[1760253927495,1.20366157,112030.0,112020.0,0.00618]
[1760253927704,1.35033156,112030.0,112020.0,0.00618]
[1760253927910,2.02367989,112030.0,112020.0,0.00418]
[1760253928523,2.02367989,112030.0,112020.0,0.00432973]
[1760253930259,2.02367989,112030.0,112020.0,0.00014973]
[1760253930868,2.0403268,112030.0,112020.0,0.00014973]
[1760253931634,2.04031117,112030.0,112020.0,0.00014973]
[1760253931809,2.01192117,112030.0,112020.0,0.00683973]
[1760253932105,2.01192117,112030.0,112020.0,0.00974258]
[1760253933149,2.04031117,112030.0,112020.0,0.00974258]
[1760253933573,2.01192117,112030.0,112020.0,0.00974258]
[1760253933801,2.01192117,112030.0,112020.0,0.02211258]
[1760253934608,2.68679364,112030.0,112020.0,0.00305258]
[1760253935080,2.04031117,112030.0,112020.0,0.00305258]
[1760253936542,2.68679364,112030.0,112020.0,0.00305258]
[1760253939091,6.62587264,112030.0,112020.0,0.00305258]
[1760253940566,4.68642523,112030.0,112020.0,0.00305258]
[1760253940702,6.62687264,112030.0,112020.0,0.00305258]
[1760253941101,6.71559198,112030.0,112020.0,0.00305258]
[1760253941300,6.71459198,112030.0,112020.0,0.00305258]
[1760253941505,0.17855548,112010.0,112000.0,0.11]
[1760253941731,2.68310415,112010.0,112000.0,0.11014989]
[1760253942135,2.69710842,112010.0,112000.0,0.11014989]
[1760253942334,2.78582776,112010.0,112000.0,0.11014989]
[1760253942950,2.78682776,112010.0,112000.0,0.11014989]
[1760253943364,6.72590676,112010.0,112000.0,0.11014989]
[1760253947021,6.7527856,112010.0,112000.0,0.11014989]
[1760253947178,6.7527856,112010.0,112000.0,0.1113115]
[1760253947804,6.7527856,112010.0,111980.0,0.0004]
[1760253947805,0.64358735,111990.0,111980.0,0.0004]
[1760253947975,2.60205476,111990.0,111980.0,0.0009001]
[1760253948176,2.68138067,111990.0,111980.0,0.0009001]
[1760253948381,2.45222405,111990.0,111980.0,0.0009001]
[1760253948613,2.65769305,111990.0,111980.0,0.0009001]
[1760253950365,2.01121058,111990.0,111980.0,0.0009001]
[1760253950575,2.65769305,111990.0,111980.0,0.0009001]
[1760253952644,2.65869305,111990.0,111980.0,0.0009001]
[1760253953347,2.65869305,111990.0,111980.0,0.00206202]
[1760253953552,6.36102474,111990.0,111980.0,0.00206202]
[1760253954257,6.2723054,111990.0,111980.0,0.00206202]
[1760253955403,6.62892373,111990.0,111980.0,0.00206202]
[1760253955980,6.62892373,111990.0,111950.0,0.01277]
[1760253955981,0.27863521,111960.0,111950.0,0.0004]
[1760253956187,0.00893255,111950.0,111920.0,0.03756]
[1760253956410,2.2641505,111930.0,111920.0,0.03769392]
[1760253956769,2.3054405,111930.0,111920.0,0.03769392]
[1760253956971,2.6454405,111930.0,111920.0,0.03769392]
[1760253957192,0.51871503,111910.0,111900.0,0.0004]
[1760253957531,1.62853742,111910.0,111900.0,0.00089982]
[1760253957743,1.69682742,111910.0,111900.0,0.00089982]
[1760253959098,5.72462576,111910.0,111900.0,1e-08]
[1760253959488,5.73864378,111910.0,111900.0,1e-08]
[1760253959691,1.71084544,111910.0,111900.0,1e-08]
[1760253960510,1.71284544,111910.0,111900.0,1e-08]
[1760253960746,1.69782742,111910.0,111900.0,1e-08]
[1760253961129,1.69682742,111910.0,111900.0,1e-08]
[1760253961566,1.70565182,111910.0,111900.0,1e-08]
[1760253962149,1.7222919,111910.0,111900.0,1e-08]
[1760253962346,1.7388719,111910.0,111900.0,1e-08]
[1760253962548,1.76303988,111910.0,111900.0,0.0046514]
[1760253963418,1.7388719,111910.0,111900.0,0.0046514]
[1760253964902,1.7388309,111910.0,111900.0,0.0046514]
[1760253968094,5.76662924,111910.0,111900.0,0.0046514]
[1760253968299,5.79079722,111910.0,111900.0,0.0046514]
[1760253968469,5.80481542,111910.0,111900.0,0.0046514]
[1760253969423,5.80581542,111910.0,111900.0,0.0046514]
[1760253969804,1.86573642,111910.0,111900.0,0.0046514]
[1760253970016,1.86673642,111910.0,111900.0,0.0046514]
[1760253970228,5.71809608,111910.0,111900.0,0.0046514]
[1760253970393,5.71709608,111910.0,111900.0,0.0046514]
[1760253970812,5.71809608,111910.0,111900.0,0.0046514]
[1760253971418,1.77901708,111910.0,111900.0,0.0046514]
[1760253971626,5.80681542,111910.0,111900.0,0.0046514]
[1760253972045,1.86773642,111910.0,111900.0,0.0046514]
[1760253972246,5.80681542,111910.0,111900.0,0.0046514]
[1760253973174,1.86773642,111910.0,111900.0,0.0046514]
[1760253973373,5.80681542,111910.0,111900.0,0.0046514]
[1760253973714,1.86773642,111910.0,111900.0,0.0046514]
[1760253973954,5.80681542,111910.0,111900.0,0.0046514]
[1760253974560,5.71809608,111910.0,111900.0,0.0046514]
[1760253975577,6.20135972,111910.0,111900.0,0.0046514]
[1760253977543,8.6189739,111910.0,111900.0,0.0046514]
[1760253981262,8.6189739,111910.0,111900.0,0.0324214]
[1760253981263,0.18744259,111910.0,111900.0,0.0324214]
[1760253981568,0.33555942,111910.0,111900.0,0.0324214]
[1760253981743,1.63278616,111910.0,111900.0,0.04047554]
[1760253982232,1.97178616,111910.0,111900.0,0.0324214]
[1760253982852,1.77790551,111910.0,111900.0,0.0529814]
[1760253983029,1.75007551,111910.0,111900.0,0.0947814]
[1760253983259,1.79454114,111910.0,111900.0,0.0529814]
[1760253984008,1.81569114,111910.0,111900.0,0.0529814]
[1760253984217,2.51278834,111910.0,111900.0,0.0046514]
[1760253985150,2.53971903,111910.0,111900.0,0.0046514]
[1760253986255,2.55894742,111910.0,111900.0,0.0046514]
[1760253987372,2.41492187,111910.0,111900.0,0.0324214]
[1760253987535,1.6628162,111910.0,111900.0,0.0947814]
[1760253987748,1.69041309,111910.0,111900.0,0.12391923]
[1760253988166,1.6628162,111910.0,111900.0,0.30265023]
[1760253988364,1.6628162,111910.0,111900.0,0.12391923]
[1760253990300,1.75968664,111910.0,111900.0,0.0046514]
[1760253990504,1.75968664,111910.0,111900.0,0.0324214]
[1760253990844,1.73942073,111910.0,111900.0,0.0529814]
[1760253991920,1.71159073,111910.0,111900.0,0.0947814]
[1760253992134,1.69044073,111910.0,111900.0,0.0947814]
[1760253992341,0.39321399,111910.0,111900.0,0.12391918]
[1760253992566,1.69044073,111910.0,111900.0,0.12391918]
[1760253992744,1.69044073,111910.0,111900.0,0.0947814]
[1760253993982,1.69044073,111910.0,111900.0,0.2735124]
[1760253994738,0.01663563,111910.0,111900.0,0.2735124]
[1760253994965,0.02404242,111930.0,111910.0,0.17871503]
[1760253994966,0.64861337,111920.0,111910.0,0.17871503]
[1760253995174,1.66232152,111920.0,111910.0,0.26707503]
[1760253995371,1.66232152,111920.0,111910.0,0.31371163]
[1760253995372,0.01673156,111920.0,111910.0,0.31371163]
[1760253995580,0.72930386,111940.0,111930.0,0.1786831]
[1760253995824,0.04435765,111940.0,111930.0,0.2665731]
[1760253996153,1.32231521,111940.0,111930.0,0.2665731]
[1760253996263,1.66231521,111940.0,111930.0,0.2665731]
[1760253996468,1.66231521,111940.0,111930.0,0.31669088]
[1760253996686,1.66231521,111940.0,111930.0,0.31769088]
[1760253996901,0.02508847,111940.0,111930.0,0.31769088]
[1760253997118,0.65697619,111940.0,111930.0,0.31769088]
[1760253997441,0.00836282,111940.0,111930.0,0.31769088]
[1760253997637,0.00836282,111940.0,111930.0,0.31869088]
[1760253998032,0.34,111950.0,111940.0,0.17866714]
[1760253998232,0.34,111950.0,111940.0,0.31521294]
[1760253998431,1.07577973,111950.0,111940.0,0.31521294]
[1760253999401,1.07627837,111950.0,111940.0,0.31621294]
[1760254000093,0.73627837,111950.0,111940.0,0.31621294]
[1760254000244,0.00049864,111950.0,111940.0,0.31621294]
[1760254000450,0.73627837,111950.0,111940.0,0.31621294]
[1760254000841,0.73627837,111950.0,111940.0,0.31853779]
[1760254001947,0.91492955,111950.0,111940.0,0.09013485]
[1760254002153,1.27161029,111950.0,111940.0,0.04925485]
[1760254002366,1.27161029,111950.0,111940.0,0.09188485]
[1760254003544,1.25492955,111950.0,111940.0,0.09188485]
[1760254005564,1.28242955,111950.0,111940.0,0.04925485]
[1760254005767,1.25492955,111950.0,111940.0,0.09188485]
[1760254009310,1.28242955,111950.0,111940.0,0.09188485]
[1760254009507,1.30190955,111950.0,111940.0,0.04925485]
[1760254009834,0.53862982,111950.0,111940.0,0.09188485]
[1760254009997,1.27440955,111950.0,111940.0,0.09188485]
[1760254011711,1.30190955,111950.0,111940.0,0.09188485]
[1760254013566,1.30190955,111950.0,111940.0,0.10290534]
[1760254013988,1.30190955,111950.0,111940.0,0.09188485]
[1760254015351,1.27440955,111950.0,111940.0,0.09188485]
[1760254015523,1.25492955,111950.0,111940.0,0.09188485]
[1760254015724,1.28242955,111950.0,111940.0,0.09188485]
[1760254015930,1.28242955,111950.0,111940.0,0.04925485]
[1760254019191,1.30190955,111950.0,111940.0,0.04925485]
[1760254019721,1.8342657,111950.0,111940.0,0.09188485]
[1760254019927,1.8342657,111950.0,111940.0,0.10290534]
[1760254021468,1.9008457,111950.0,111940.0,0.04925485]
[1760254021891,1.8617657,111950.0,111940.0,0.04925485]
[1760254022354,4.49211746,111950.0,111940.0,0.00332485]
[1760254022554,2.54866364,111950.0,111940.0,0.00332485]
[1760254024112,2.54866364,111950.0,111940.0,0.00232485]
[1760254024327,2.54866364,111950.0,111940.0,0.09281485]
[1760254024328,1.8147857,111950.0,111940.0,0.09281485]
[1760254024536,1.8147857,111950.0,111940.0,0.10397934]
[1760254024753,1.8422857,111950.0,111940.0,0.06134934]
[1760254025168,1.8617657,111950.0,111940.0,0.06134934]
[1760254025710,1.8617657,111950.0,111940.0,0.05018485]
[1760254028167,1.8147857,111950.0,111940.0,0.09095485]
[1760254028390,1.8411357,111950.0,111940.0,0.09095485]
[1760254028569,1.63613452,111950.0,111940.0,0.09095485]
[1760254028776,0.98831658,111950.0,111940.0,0.09095485]
[1760254028972,0.98831658,111950.0,111940.0,0.12158789]
[1760254029359,1.16696776,111950.0,111940.0,0.12158789]
[1760254029765,1.16696776,111950.0,111940.0,0.09095485]
[1760254030084,1.8147857,111950.0,111940.0,0.09095485]
[1760254030549,1.8997357,111950.0,111940.0,0.02218485]
[1760254030758,1.8607157,111950.0,111940.0,0.04964485]
[1760254030963,1.8147857,111950.0,111940.0,0.09041485]
[1760254031163,1.8147857,111950.0,111940.0,0.09141485]
[1760254031521,1.25524912,111950.0,111940.0,0.09141485]
[1760254037583,1.50876127,111950.0,111940.0,0.09141485]
[1760254039600,1.53511127,111950.0,111940.0,0.09141485]
[1760254039771,1.55469127,111950.0,111940.0,0.05064485]
[1760254040352,1.50876127,111950.0,111940.0,0.09141485]
[1760254040574,1.59371127,111950.0,111940.0,0.05064485]
[1760254040779,0.56507982,111950.0,111940.0,0.05064485]
[1760254040984,1.55469127,111950.0,111940.0,0.06166934]
[1760254041398,1.55469127,111950.0,111940.0,0.05064485]
[1760254042012,1.59371127,111950.0,111940.0,0.00332485]
[1760254042415,1.59371127,111950.0,111940.0,0.03078485]
[1760254042624,1.50876127,111950.0,111940.0,0.09141485]
[1760254043259,1.59371127,111950.0,111940.0,0.00332485]
[1760254044242,1.25321263,111950.0,111940.0,0.00332485]
[1760254045057,1.25321263,111950.0,111940.0,0.00232485]
[1760254045263,1.25321263,111950.0,111940.0,0.02978485]
[1760254045680,1.25321263,111950.0,111940.0,0.00232485]
[1760254048347,1.59321263,111950.0,111940.0,0.00232485]
[1760254051618,1.89935538,111950.0,111940.0,0.02978485]
[1760254051780,1.86033538,111950.0,111940.0,0.04964485]
[1760254054376,1.16652828,111950.0,111940.0,0.10133934]
[1760254054897,0.51865118,111950.0,111940.0,0.10133934]
[1760254055072,1.16652828,111950.0,111940.0,0.10133934]
[1760254055475,1.16652828,111950.0,111940.0,0.09041485]
[1760254056059,1.25147828,111950.0,111940.0,0.04964485]
[1760254056266,1.21245828,111950.0,111940.0,0.04964485]
[1760254056440,1.21245828,111950.0,111940.0,0.05064485]
[1760254057694,1.86033538,111950.0,111940.0,0.05064485]
[1760254057852,1.90098538,111950.0,111940.0,0.02318485]
[1760254058048,1.90098538,111950.0,111940.0,0.00332485]
[1760254058500,5.86596976,111950.0,111940.0,0.00332485]
[1760254059669,5.86596976,111950.0,111940.0,0.00232485]
[1760254059861,5.84006438,111950.0,111940.0,0.00232485]
[1760254060848,1.90098538,111950.0,111940.0,0.00232485]
[1760254067268,1.86033538,111950.0,111940.0,0.02914485]
[1760254067647,1.90043538,111950.0,111940.0,0.00232485]
[1760254068179,1.90043538,111950.0,111940.0,0.02914485]
[1760254068423,1.21245828,111950.0,111940.0,0.02188485]
[1760254068623,1.90043538,111950.0,111940.0,0.00232485]
[1760254071657,1.98915472,111950.0,111940.0,0.00232485]
[1760254071859,6.60176701,111950.0,111940.0,0.00232485]
[1760254072067,6.60176701,111950.0,111940.0,1e-08]
[1760254072249,6.57611082,111950.0,111940.0,1e-08]
[1760254072511,6.64540648,111950.0,111940.0,1e-08]
[1760254072995,5.90881004,111950.0,111940.0,1e-08]
[1760254073802,5.90981004,111950.0,111940.0,1e-08]
[1760254074004,5.88415385,111950.0,111940.0,1e-08]
[1760254075035,5.88142003,111950.0,111940.0,1e-08]
[1760254075251,5.8981606,111950.0,111940.0,1e-08]
[1760254076136,5.88142003,111950.0,111940.0,1e-08]
[1760254076350,0.95446393,111950.0,111940.0,0.02682001]
[1760254076554,1.94234103,111950.0,111940.0,1e-08]
[1760254076937,1.94134103,111950.0,111940.0,1e-08]
[1760254078752,0.64558683,111950.0,111940.0,1e-08]
[1760254079006,1.94134103,111950.0,111940.0,1e-08]
[1760254087779,1.7556186,111950.0,111940.0,1e-08]
[1760254087978,1.93426978,111950.0,111940.0,1e-08]
[1760254088158,2.37166978,111950.0,111940.0,1e-08]
[1760254092090,1.20743393,111950.0,111940.0,0.08543001]
[1760254092437,1.20743393,111950.0,111940.0,0.09580501]
[1760254092438,1.19342003,111950.0,111940.0,0.09580501]
[1760254092935,1.19342003,111950.0,111940.0,0.08543001]
[1760254094252,1.23996003,111950.0,111940.0,0.04599001]
[1760254094456,1.23996003,111950.0,111940.0,0.08543001]
[1760254095021,1.27984003,111950.0,111940.0,0.04599001]
[1760254095275,1.92771713,111950.0,111940.0,1e-08]
[1760254095513,1.92771713,111950.0,111940.0,0.02548001]
[1760254095991,1.88783713,111950.0,111940.0,0.02548001]
[1760254096213,1.88783713,111950.0,111940.0,0.04599001]
[1760254097517,2.5356692,111950.0,111940.0,0.04599001]
[1760254099361,2.5755492,111950.0,111940.0,0.04599001]
[1760254099856,2.5356692,111950.0,111940.0,0.04599001]
[1760254100380,2.5755492,111950.0,111940.0,0.04599001]
[1760254104679,2.5356692,111950.0,111940.0,0.04599001]
[1760254104882,2.5755492,111950.0,111940.0,0.04599001]
[1760254105243,2.5755492,111950.0,111940.0,0.05636501]
[1760254105360,2.5755492,111950.0,111940.0,0.04599001]
[1760254105946,2.5356692,111950.0,111940.0,0.04599001]
[1760254106556,2.16877745,111950.0,111940.0,0.04599001]
[1760254107021,2.19566612,111950.0,111940.0,0.04599001]
[1760254107506,2.19566612,111950.0,111940.0,0.08543001]
[1760254107704,2.19566612,111950.0,111940.0,0.09580501]
[1760254107912,2.23554612,111950.0,111940.0,1e-08]
[1760254108644,2.57554612,111950.0,111940.0,1e-08]
[1760254137911,0.17866714,111940.0,111920.0,0.01956]
[1760254138118,0.51869907,111920.0,111910.0,0.12801362]
[1760254138324,2.54628534,111920.0,111910.0,0.12801362]
[1760254138737,2.53489904,111920.0,111910.0,0.08393444]
[1760254138948,2.53489904,111920.0,111910.0,0.13934688]
[1760254139157,2.48917904,111920.0,111910.0,0.13934688]
[1760254139793,1.84131695,111920.0,111910.0,0.13934688]
[1760254140422,1.84131695,111920.0,111910.0,0.12481444]
[1760254144783,0.54559277,111920.0,111910.0,0.12481444]
[1760254144995,1.84131695,111920.0,111910.0,0.12481444]
[1760254148142,1.66261788,111920.0,111910.0,0.30352947]
[1760254148259,1.66261788,111920.0,111910.0,0.35380615]
[1760254148458,1.32261788,111920.0,111910.0,0.35380615]
[1760254149324,0.67475579,111920.0,111910.0,0.35480615]
[1760254149643,1.32261788,111920.0,111910.0,0.35580615]
[1760254150680,0.67475579,111920.0,111910.0,0.35580615]
[1760254150893,1.32261788,111920.0,111910.0,0.35580615]
[1760254151109,1.32261788,111920.0,111910.0,0.30552947]
[1760254156134,0.67475579,111920.0,111910.0,0.30552947]
[1760254157535,0.67468567,111920.0,111910.0,0.30552947]
[1760254158691,0.85338474,111920.0,111910.0,0.12681444]
[1760254159342,0.82649104,111920.0,111910.0,0.12681444]
[1760254160396,1.19280104,111920.0,111910.0,0.06013444]
[1760254160608,1.2403732,111920.0,111910.0,0.08760444]
[1760254160815,1.1933832,111920.0,111910.0,0.12707444]
[1760254161415,1.1933832,111920.0,111910.0,0.12607444]
[1760254161626,1.1933832,111920.0,111910.0,0.12707444]
[1760254161977,1.1933832,111920.0,111910.0,0.12607444]
[1760254162181,1.1933832,111920.0,111910.0,0.12507444]
[1760254162388,1.1933832,111920.0,111910.0,0.12607444]
[1760254162650,1.1933832,111920.0,111910.0,0.12507444]
[1760254163108,1.1933832,111920.0,111910.0,0.12607444]
[1760254167312,0.54559123,111920.0,111910.0,0.12607444]
[1760254167542,1.1933832,111920.0,111910.0,0.12607444]
[1760254167745,1.1933832,111920.0,111910.0,0.14083288]
[1760254168778,1.1933832,111920.0,111910.0,0.12607444]
[1760254170445,1.1933832,111920.0,111910.0,0.08847444]
[1760254174978,0.54559123,111920.0,111910.0,0.08847444]
[1760254175111,1.1933832,111920.0,111910.0,0.08847444]
[1760254183226,0.54559123,111920.0,111910.0,0.08847444]
[1760254183416,1.1933832,111920.0,111910.0,0.08847444]
[1760254186798,1.84117517,111920.0,111910.0,0.08847444]
[1760254186998,1.84117517,111920.0,111910.0,0.09947288]
[1760254187210,1.1933832,111920.0,111910.0,0.09947288]
[1760254187857,0.36689216,111920.0,111910.0,0.29605941]
[1760254188102,1.01468413,111920.0,111910.0,0.27818791]
[1760254188538,1.1933832,111920.0,111910.0,0.08847444]
[1760254196526,1.84117517,111920.0,111910.0,0.08847444]
[1760254197562,1.86644517,111920.0,111910.0,0.08847444]
[1760254197757,1.84117517,111920.0,111910.0,0.08847444]
[1760254199575,1.86644517,111920.0,111910.0,0.04900444]
[1760254199778,1.88581517,111920.0,111910.0,0.04900444]
[1760254199985,1.1933832,111920.0,111910.0,0.09876888]
[1760254200270,1.1933832,111920.0,111910.0,0.08783444]
[1760254200912,1.92249517,111920.0,111910.0,0.02153444]
[1760254201115,1.92249517,111920.0,111910.0,0.00274444]
[1760254201748,1.47429897,111910.0,111900.0,0.001]
[1760254201951,2.17814094,111910.0,111900.0,0.001]
[1760254202154,1.55561897,111910.0,111900.0,0.001]
[1760254202340,2.54341094,111910.0,111900.0,0.001]
[1760254202541,2.57030997,111910.0,111900.0,0.001]
[1760254203036,2.57030997,111910.0,111900.0,0.00149864]
[1760254204040,1.922518,111910.0,111900.0,0.00149864]
[1760254204665,1.922518,111910.0,111900.0,0.00249864]
[1760254204876,1.7368419,111910.0,111900.0,0.00249864]
[1760254205082,1.922518,111910.0,111900.0,0.00149864]
[1760254207533,1.922518,111910.0,111900.0,0.00208025]
[1760254208549,2.57030997,111910.0,111900.0,0.00208025]
[1760254208754,1.47433092,111890.0,111880.0,0.0004]
[1760254208969,1.49369925,111890.0,111880.0,0.0004]
[1760254209429,1.52668783,111890.0,111880.0,0.0004]
[1760254209636,1.5535893,111890.0,111880.0,0.0004]